bitfinex-derivatives/quotes_SOLF0:USTF0_20250823
["timestamp","ask_amount","ask_price","bid_price","bid_amount"]
[1755974224036,4.8961,204.31,204.23,2.67]
[1755974230048,4.8955,204.34,204.23,7.70174499]
[1755974230253,124.8355,204.34,204.25,2.77]
[1755974230946,4.8955,204.34,204.25,2.77]
[1755974231147,125.03174499,204.35,204.27,7.6671]
[1755974232556,129.92714499,204.35,204.27,7.6671]
[1755974235056,9.92714499,204.35,204.27,7.6671]
[1755974235260,119.94,204.34,204.27,7.6671]
[1755974237462,119.94,204.34,204.28,4.44058198]
[1755974237659,119.94,204.34,204.27,7.6671]
[1755974237857,119.94,204.34,204.28,4.44058198]
[1755974238059,119.94,204.34,204.27,7.6671]
[1755974238254,124.8356,204.34,204.28,4.44112971]
[1755974238456,124.8356,204.34,204.27,7.6671]
[1755974238761,124.8356,204.34,204.27,2.77]
[1755974239764,4.8956,204.34,204.27,2.77]
[1755974239964,124.7356,204.34,204.27,2.77]
[1755974241359,124.6956,204.34,204.27,2.77]
[1755974244266,4.8958,204.33,204.27,2.77]
[1755974244469,4.8958,204.33,204.25,4.8975]
[1755974244667,4.8958,204.33,204.26,4.44952848]
[1755974244866,4.8958,204.33,204.25,4.8975]
[1755974245065,4.8958,204.33,204.26,4.44952848]
[1755974245266,4.8958,204.33,204.25,4.8975]
[1755974245565,4.8958,204.33,204.26,4.45063]
[1755974245859,119.8,204.34,204.24,2.77]
[1755974246067,119.8,204.34,204.25,4.45231221]
[1755974246266,119.8,204.34,204.26,4.45231221]
[1755974246568,119.8,204.34,204.24,2.77]
[1755974246865,119.8,204.34,204.25,4.4529354]
[1755974247062,119.8,204.34,204.26,4.45423405]
[1755974247268,119.8,204.34,204.24,2.77]
[1755974247568,4.8963,204.31,204.25,4.45444529]
[1755974247771,4.8963,204.31,204.27,2.77]
[1755974248671,4.8963,204.31,204.28,4.45505698]
[1755974248869,4.8963,204.31,204.29,4.45505698]
[1755974249161,4.8963,204.31,204.27,2.77]
[1755974249368,4.8963,204.31,204.28,4.45569881]
[1755974249569,4.8963,204.31,204.27,2.77]
[1755974249767,4.8963,204.31,204.28,7.22588831]
[1755974249962,4.8963,204.31,204.29,4.45588831]
[1755974250168,4.8963,204.31,204.28,2.77]
[1755974250662,4.8963,204.31,204.29,4.45564655]
[1755974250968,4.8963,204.31,204.25,2.77]
[1755974251164,4.8963,204.31,204.27,2.77]
[1755974251371,4.8963,204.31,204.28,4.45546231]
[1755974251564,4.8963,204.31,204.29,4.45546231]
[1755974251761,4.8963,204.31,204.27,2.77]
[1755974251965,4.8963,204.31,204.28,4.4551793]
[1755974252267,4.8963,204.31,204.29,4.45547646]
[1755974252463,4.8963,204.31,204.25,2.77]
[1755974252664,4.8963,204.31,204.27,2.77]
[1755974252964,4.8963,204.31,204.28,4.45535391]
[1755974253164,4.8963,204.31,204.29,4.45535391]
[1755974253368,4.8963,204.31,204.27,2.77]
[1755974253565,4.8963,204.31,204.28,4.44453137]
[1755974253770,4.8963,204.31,204.29,4.44453137]
[1755974253971,4.8963,204.31,204.27,2.77]
[1755974254169,4.8963,204.31,204.28,4.44463014]
[1755974254363,4.8963,204.31,204.29,4.44463014]
[1755974254570,4.8963,204.31,204.3,4.44463014]
[1755974256772,4.8963,204.31,204.3,4.44884266]
[1755974264282,4.8963,204.31,204.28,2.66]
[1755974264472,4.8963,204.31,204.29,4.45345319]
[1755974264676,4.8963,204.31,204.3,4.45345319]
[1755974265377,4.8966,204.3,204.26,2.66]
[1755974265577,4.8966,204.3,204.27,4.57812079]
[1755974265779,4.8966,204.3,204.28,4.57812079]
[1755974265975,4.8966,204.3,204.26,2.66]
[1755974266179,4.8966,204.3,204.27,4.45463588]
[1755974266381,4.8966,204.3,204.26,2.66]
[1755974266683,4.8966,204.3,204.27,7.1143105]
[1755974266884,4.8966,204.3,204.28,4.4543105]
[1755974267085,144.1584,204.33,204.29,4.45448291]
[1755974267285,5.03174499,204.32,204.3,4.45522896]
[1755974267583,5.03174499,204.32,204.31,2.896e-05]
[1755974268181,4.8971,204.27,204.23,2.66]
[1755974268480,4.8971,204.27,204.24,2.66]
[1755974268878,338.9268,204.43,204.2,24.4935]
[1755974269072,5.03174499,204.37,204.23,2.66]
[1755974269283,5.03174499,204.37,204.25,2.66]
[1755974270586,4.896,204.32,204.25,7.5574]
[1755974272387,4.8963,204.31,204.25,2.66]
[1755974272687,119.66,204.33,204.25,2.66]
[1755974273487,4.8966,204.29,204.25,2.66]
[1755974273686,4.8966,204.29,204.26,2.66]
[1755974274087,4.8962,204.31,204.24,2.66]
[1755974274795,4.8962,204.31,204.24,7.5576]
[1755974274993,4.8962,204.31,204.25,2.66]
[1755974276087,4.8962,204.31,204.27,2.66]
[1755974276292,4.8962,204.31,204.28,2.66]
[1755974278194,4.8962,204.31,204.25,2.66]
[1755974279792,4.8962,204.31,204.26,7.15113555]
[1755974279992,4.8962,204.31,204.27,4.49113555]
[1755974280194,4.8962,204.31,204.28,4.49113555]
[1755974280392,4.8962,204.31,204.29,4.49113555]
[1755974280588,4.8962,204.31,204.3,4.49113555]
[1755974282092,4.8962,204.31,204.3,7.15113555]
[1755974284797,4.8962,204.31,204.3,2.66]
[1755974284997,4.8962,204.31,204.3,7.15704802]
[1755974285596,4.8962,204.31,204.3,7.1571855]
[1755974286097,119.52,204.32,204.3,7.1571855]
[1755974286296,119.52,204.32,204.31,4.4971855]
[1755974288797,119.52,204.32,204.26,4.8971]
[1755974289002,4.8956,204.33,204.29,2.58]
[1755974289201,119.54,204.32,204.3,4.49746885]
[1755974289397,119.54,204.32,204.29,2.58]
[1755974289598,119.54,204.32,204.3,4.49763175]
[1755974289893,119.54,204.32,204.29,2.58]
[1755974290098,119.54,204.32,204.3,4.49763175]
[1755974290298,119.54,204.32,204.29,2.58]
[1755974290494,119.54,204.32,204.3,4.49771818]
[1755974290694,119.54,204.32,204.29,2.58]
[1755974290902,119.54,204.32,204.3,4.49771818]
[1755974291102,119.54,204.32,204.29,2.58]
[1755974291403,119.54,204.32,204.3,4.49771818]
[1755974291701,119.54,204.32,204.31,4.49771818]
[1755974292400,4.8964,204.3,204.24,8.12111986]
[1755974292601,4.8964,204.3,204.26,2.58]
[1755974292802,4.8964,204.3,204.27,4.49897182]
[1755974293002,3.22341986,204.29,204.28,4.49897182]
[1755974293706,4.896,204.32,204.28,7.07897182]
[1755974293906,119.48,204.31,204.3,2.58]
[1755974295606,119.48,204.31,204.3,7.07777337]
[1755974295803,3.22341986,204.33,204.3,7.07777337]
[1755974296108,119.58,204.32,204.3,2.58]
[1755974298712,119.58,204.32,204.31,4.49827681]
[1755974301618,4.8964,204.3,204.24,2.58]
[1755974301807,3.22341986,204.29,204.25,7.0792938]
[1755974302006,119.56,204.28,204.26,4.4992938]
[1755974302305,119.56,204.28,204.27,4.4992938]
[1755974304513,119.56,204.28,204.22,8.12161986]
[1755974304715,119.56,204.28,204.23,4.50029658]
[1755974304922,119.56,204.28,204.24,7.08029658]
[1755974305218,119.56,204.28,204.25,4.50029987]
[1755974305413,119.56,204.28,204.26,4.50029987]
[1755974305613,119.56,204.28,204.27,4.50029987]
[1755974306218,119.52,204.28,204.27,4.50029987]
[1755974308022,122.74341986,204.28,204.22,3.22341986]
[1755974308221,122.74341986,204.28,204.24,2.58]
[1755974308421,122.74341986,204.28,204.25,4.50029841]
[1755974308618,122.74341986,204.28,204.26,4.50029841]
[1755974308819,122.74341986,204.28,204.27,4.50029841]
[1755974312120,122.74341986,204.28,204.21,2.58]
[1755974312320,3.22341986,204.26,204.22,4.50032941]
[1755974312622,3.22341986,204.24,204.23,4.50032941]
[1755974312925,122.66341986,204.24,204.23,4.50032941]
[1755974313615,4.8978,204.25,204.23,4.50032941]
[1755974313819,3.22341986,204.25,204.24,4.50032941]
[1755974314423,3.22341986,204.25,204.2,75.18331546]
[1755974314624,3.22341986,204.25,204.21,4.48788761]
[1755974314824,119.46,204.24,204.22,4.48788761]
[1755974315016,119.46,204.24,204.23,4.48788761]
[1755974315221,119.46,204.24,204.23,4.48722776]
[1755974315420,119.46,204.24,204.23,4.48669157]
[1755974317918,119.46,204.24,204.23,4.48579961]
[1755974321026,3.22341986,204.25,204.23,4.48579961]
[1755974321223,122.68341986,204.25,204.24,4.48579961]
[1755974324433,122.68341986,204.25,204.24,4.48479735]
[1755974325130,119.46,204.25,204.24,4.48479735]
[1755974328738,3.22341986,204.26,204.24,4.48479735]
[1755974328935,122.68341986,204.26,204.25,4.48479735]
[1755974329640,3.22341986,204.26,204.25,4.48479735]
[1755974330035,122.68341986,204.26,204.25,4.48479735]
[1755974332134,4.8959,204.32,204.25,9.38229735]
[1755974332340,3.22341986,204.28,204.26,4.48479735]
[1755974332642,3.22341986,204.28,204.27,4.48479735]
[1755974333345,122.68341986,204.28,204.27,4.48479735]
[1755974334336,122.68341986,204.28,204.27,4.48285246]
[1755974338649,122.68341986,204.28,204.23,4.8979]
[1755974338941,122.68341986,204.28,204.24,4.48496]
[1755974339149,122.68341986,204.28,204.25,4.48496]
[1755974339348,122.68341986,204.28,204.23,4.8979]
[1755974339544,122.68341986,204.28,204.24,4.4852431]
[1755974339743,122.68341986,204.28,204.25,4.4852431]
[1755974339940,122.68341986,204.28,204.23,4.8979]
[1755974340141,122.68341986,204.28,204.24,4.48544994]
[1755974340337,122.68341986,204.28,204.25,4.48544994]
[1755974340541,122.68341986,204.28,204.23,7.6279]
[1755974340744,122.68341986,204.28,204.24,4.48570218]
[1755974340946,122.68341986,204.28,204.25,4.48570218]
[1755974341250,122.68341986,204.28,204.23,7.6279]
[1755974341548,122.68341986,204.28,204.24,7.21594188]
[1755974341749,122.68341986,204.28,204.25,4.48594188]
[1755974341944,122.68341986,204.28,204.24,2.73]
[1755974341945,122.68341986,204.28,204.26,4.48594188]
[1755974342147,122.68341986,204.28,204.24,2.73]
[1755974342445,122.68341986,204.28,204.25,4.48660531]
[1755974342647,122.68341986,204.28,204.26,4.48660531]
[1755974342847,122.68341986,204.28,204.24,2.73]
[1755974343249,122.68341986,204.28,204.25,4.49223405]
[1755974343543,122.68341986,204.28,204.26,4.49223405]
[1755974343741,122.68341986,204.28,204.24,2.73]
[1755974343946,122.68341986,204.28,204.25,4.49283973]
[1755974344147,122.68341986,204.28,204.26,4.49283973]
[1755974344342,122.68341986,204.28,204.24,2.73]
[1755974344547,122.68341986,204.28,204.25,4.49347474]
[1755974344747,122.68341986,204.28,204.26,4.49347474]
[1755974344947,122.68341986,204.28,204.24,2.73]
[1755974345148,122.68341986,204.28,204.25,4.49367431]
[1755974345344,122.68341986,204.28,204.26,4.49367431]
[1755974345541,122.68341986,204.28,204.24,2.73]
[1755974345748,122.68341986,204.28,204.25,4.49441274]
[1755974345949,122.68341986,204.28,204.26,4.49441274]
[1755974346147,122.68341986,204.28,204.24,2.73]
[1755974346446,122.68341986,204.28,204.25,4.49524095]
[1755974346750,122.68341986,204.28,204.26,4.49524095]
[1755974346947,122.68341986,204.28,204.24,2.73]
[1755974347251,122.68341986,204.28,204.25,4.4955685]
[1755974347444,122.68341986,204.28,204.26,4.4955685]
[1755974347644,122.68341986,204.28,204.24,2.73]
[1755974347845,119.46,204.28,204.25,4.49580795]
[1755974348044,119.46,204.28,204.26,4.49580795]
[1755974348245,3.22341986,204.27,204.2,75.18331546]
[1755974348446,3.22341986,204.27,204.21,4.49690091]
[1755974348652,3.22341986,204.27,204.22,4.49690091]
[1755974348949,3.22341986,204.27,204.23,4.49690091]
[1755974349150,3.22341986,204.27,204.24,4.49690091]
[1755974349351,3.22341986,204.27,204.25,4.49690091]
[1755974349550,8.12061986,204.27,204.26,4.49690091]
[1755974352953,8.12061986,204.27,204.26,4.4969937]
[1755974354147,127.56061986,204.27,204.26,4.4969937]
[1755974355154,127.56061986,204.27,204.16,2.82]
[1755974355155,4.8983,204.22,204.16,2.82]
[1755974355358,119.42,204.21,204.17,6.91179047]
[1755974355553,119.42,204.21,204.17,2.82]
[1755974356054,4.8983,204.22,204.17,2.82]
[1755974356259,119.42,204.21,204.17,2.82]
[1755974357356,122.64341986,204.21,204.17,2.82]
[1755974363460,119.44,204.2,204.16,2.82]
[1755974363758,119.44,204.2,204.18,2.82]
[1755974363950,119.44,204.2,204.19,2.82]
[1755974367256,119.44,204.2,204.19,7.21983876]
[1755974368261,119.44,204.2,204.19,2.82]
[1755974368464,119.44,204.2,204.19,7.21940568]
[1755974369864,119.44,204.2,204.19,4.39940568]
[1755974370068,3.22341986,204.23,204.19,4.39940568]
[1755974370269,119.44,204.22,204.2,4.39940568]
[1755974370558,119.44,204.22,204.21,4.39940568]
[1755974371960,119.44,204.22,204.16,2.82]
[1755974372161,119.44,204.22,204.17,4.39977966]
[1755974372367,119.44,204.22,204.18,4.39977966]
[1755974372568,119.44,204.22,204.17,2.82]
[1755974372767,119.44,204.22,204.18,4.39920428]
[1755974373065,119.44,204.22,204.17,2.82]
[1755974373265,119.44,204.22,204.18,4.41093674]
[1755974373467,119.44,204.22,204.19,4.41093674]
[1755974373666,119.44,204.22,204.2,4.41093674]
[1755974373864,119.44,204.24,204.21,4.41030468]
[1755974374065,119.44,204.24,204.22,4.41030468]
[1755974374264,119.42,204.23,204.19,2.62]
[1755974374467,122.64341986,204.23,204.2,4.40995244]
[1755974374666,122.64341986,204.23,204.21,4.40995244]
[1755974374963,122.64341986,204.23,204.22,4.40995244]
[1755974375163,119.42,204.23,204.22,4.40995244]
[1755974375363,122.64341986,204.23,204.22,4.40995244]
[1755974379776,122.64341986,204.23,204.18,4.8991]
[1755974380074,122.64341986,204.23,204.19,4.41106589]
[1755974380277,122.64341986,204.23,204.2,4.41106589]
[1755974380472,122.64341986,204.23,204.21,4.41106589]
[1755974380672,122.64341986,204.23,204.18,7.5191]
[1755974380868,122.64341986,204.23,204.19,7.03142929]
[1755974381072,122.64341986,204.23,204.2,4.41142929]
[1755974381274,122.64341986,204.23,204.21,4.41142929]
[1755974381476,122.64341986,204.23,204.18,7.5191]
[1755974381676,122.64341986,204.23,204.19,4.41228443]
[1755974381875,122.64341986,204.23,204.2,4.41228443]
[1755974382073,3.22341986,204.23,204.21,4.41228443]
[1755974382277,119.42,204.22,204.18,7.5191]
[1755974382478,119.42,204.22,204.19,4.41190986]
[1755974382673,119.42,204.22,204.2,4.41190986]
[1755974382875,119.42,204.22,204.21,4.41190986]
[1755974385779,119.42,204.22,204.21,4.41188138]
[1755974386281,122.64341986,204.22,204.21,4.41188138]
[1755974386482,122.64341986,204.22,204.13,7.5203]
[1755974386684,3.22341986,204.19,204.14,6.68666275]
[1755974386877,119.42,204.18,204.15,4.06666275]
[1755974387082,119.42,204.18,204.14,2.62]
[1755974387280,119.42,204.18,204.15,4.06678954]
[1755974387475,119.42,204.18,204.14,2.62]
[1755974387878,119.42,204.18,204.15,4.06698026]
[1755974388079,119.42,204.18,204.14,2.62]
[1755974388280,119.42,204.18,204.15,4.06768139]
[1755974388582,119.42,204.18,204.14,2.62]
[1755974388777,119.42,204.18,204.15,4.06750082]
[1755974388978,119.42,204.18,204.14,2.62]
[1755974389179,119.42,204.17,204.15,4.06750082]
[1755974389482,119.42,204.17,204.14,2.62]
[1755974389783,4.8992,204.19,204.15,4.06763779]
[1755974389973,4.8992,204.19,204.14,2.62]
[1755974390178,119.42,204.18,204.12,3.22341986]
[1755974390378,119.42,204.18,204.13,6.68804829]
[1755974390581,119.42,204.18,204.14,4.06804829]
[1755974390876,119.42,204.18,204.13,2.62]
[1755974391079,119.42,204.18,204.14,4.06804829]
[1755974391382,119.42,204.18,204.13,2.62]
[1755974391584,119.42,204.18,204.14,4.06836229]
[1755974391783,119.42,204.18,204.13,2.62]
[1755974391984,119.42,204.18,204.14,4.06836229]
[1755974392285,119.42,204.18,204.1,5.84341986]
[1755974392484,119.42,204.18,204.11,4.06917104]
[1755974392485,3.22341986,204.17,204.11,4.06917104]
[1755974392678,3.22341986,204.17,204.12,4.06917104]
[1755974392878,3.22341986,204.17,204.13,4.06917104]
[1755974393079,3.22341986,204.17,204.12,2.62]
[1755974393280,3.22341986,204.17,204.13,4.06963473]
[1755974393476,8.12301986,204.17,204.12,2.62]
[1755974393681,8.12301986,204.17,204.13,4.06991964]
[1755974393882,8.12301986,204.17,204.12,2.62]
[1755974394184,3.22341986,204.15,204.08,2.62]
[1755974394384,119.42,204.14,204.09,6.68962029]
[1755974394580,119.42,204.14,204.1,4.06962029]
[1755974394781,119.42,204.14,204.11,4.06962029]
[1755974394980,119.42,204.14,204.12,4.06962029]
[1755974395181,119.42,204.14,204.13,2.62]
[1755974395688,119.42,204.14,204.1,3.22341986]
[1755974395891,119.42,204.14,204.11,6.68939977]
[1755974396082,119.42,204.14,204.11,2.62]
[1755974396485,119.42,204.14,204.12,2.62]
[1755974397585,3.22341986,204.17,204.12,2.62]
[1755974397786,119.42,204.16,204.12,2.62]
[1755974398389,119.42,204.16,204.13,4.37182388]
[1755974398591,119.42,204.16,204.14,4.37182388]
[1755974398793,119.42,204.16,204.15,4.37182388]
[1755974400992,119.42,204.16,204.06,2.62]
[1755974401187,3.22341986,204.13,204.07,8.44409232]
[1755974401388,3.22341986,204.13,204.08,6.69037615]
[1755974401389,119.44,204.12,204.08,6.69037615]
[1755974401588,119.44,204.12,204.09,4.37408791]
[1755974401789,119.44,204.12,204.1,4.37408791]
[1755974401994,3.22341986,204.16,204.11,6.99408791]
[1755974402194,119.44,204.15,204.12,4.37408791]
[1755974402384,119.44,204.15,204.13,4.37408791]
[1755974402691,119.44,204.15,204.14,4.37408791]
[1755974404290,119.44,204.15,204.14,4.35000435]
[1755974404694,3.22341986,204.16,204.14,4.35000435]
[1755974404895,119.44,204.15,204.11,2.62]
[1755974405189,119.44,204.15,204.12,4.34979109]
[1755974405395,119.44,204.14,204.13,4.34979109]
[1755974405790,122.66341986,204.14,204.13,4.34979109]
[1755974406595,122.66341986,204.14,204.07,5.89341986]
[1755974406791,122.66341986,204.14,204.08,4.34908099]
[1755974406995,122.66341986,204.14,204.09,7.01908099]
[1755974407295,122.66341986,204.14,204.1,4.34908099]
[1755974407496,122.66341986,204.14,204.11,4.34908099]
[1755974407796,122.66341986,204.14,204.12,4.34908099]
[1755974408098,122.66341986,204.14,204.13,4.34908099]
[1755974408486,3.22341986,204.14,204.13,4.34908099]
[1755974408688,122.66341986,204.14,204.13,4.34908099]
[1755974408888,122.66341986,204.14,204.09,2.67]
[1755974409089,122.66341986,204.14,204.1,4.34700186]
[1755974409292,122.66341986,204.14,204.11,4.34700186]
[1755974409594,122.66341986,204.14,204.12,4.34700186]
[1755974409795,122.66341986,204.14,204.09,2.67]
[1755974409995,122.66341986,204.14,204.1,4.34641282]
[1755974410198,4.9004,204.13,204.11,4.34641282]
[1755974410392,4.9004,204.13,204.12,4.34641282]
[1755974410791,4.9004,204.13,204.07,3.22341986]
[1755974411098,4.9004,204.13,204.08,4.34590269]
[1755974411300,4.9004,204.13,204.09,7.01590269]
[1755974411502,4.9004,204.13,204.1,4.34590269]
[1755974411797,4.9004,204.13,204.11,4.34590269]
[1755974411997,4.9004,204.13,204.09,2.67]
[1755974412195,4.9004,204.13,204.1,4.34601358]
[1755974412400,4.9004,204.13,204.11,4.34601358]
[1755974412600,4.9004,204.13,204.09,2.67]
[1755974412799,4.9004,204.13,204.1,4.34535521]
[1755974413001,4.9004,204.13,204.11,4.34535521]
[1755974413302,119.44,204.12,204.09,2.67]
[1755974413502,119.44,204.12,204.1,4.34474514]
[1755974413702,119.44,204.12,204.11,4.34474514]
[1755974416004,122.66341986,204.12,204.11,4.34474514]
[1755974416206,122.66341986,204.12,204.06,7.5719]
[1755974416405,122.66341986,204.12,204.08,2.67]
[1755974416706,122.66341986,204.12,204.09,7.01599519]
[1755974416908,122.66341986,204.12,204.1,4.34599519]
[1755974417100,122.66341986,204.12,204.09,2.67]
[1755974417297,122.66341986,204.12,204.1,4.34599965]
[1755974417499,122.66341986,204.12,204.09,2.67]
[1755974417707,122.66341986,204.12,204.1,4.34554159]
[1755974417909,122.66341986,204.12,204.09,2.67]
[1755974418103,122.66341986,204.12,204.1,4.34554604]
[1755974418311,3.22341986,204.12,204.09,2.67]
[1755974418504,119.44,204.11,204.1,4.34516343]
[1755974418712,119.44,204.11,204.1,7.01516343]
[1755974420813,119.44,204.11,204.1,7.01524849]
[1755974421314,119.44,204.11,204.1,4.34524849]
[1755974424320,119.44,204.11,204.05,3.22341986]
[1755974424522,124.3411,204.11,204.06,4.34832107]
[1755974424712,124.3411,204.11,204.07,4.34832107]
[1755974425020,124.3411,204.11,204.08,4.34832107]
[1755974425320,124.3411,204.11,204.09,4.34832107]
[1755974425507,124.3411,204.11,204.07,2.67]
[1755974425711,124.3411,204.11,204.08,4.34871027]
[1755974425909,124.3411,204.11,204.09,4.34871027]
[1755974426114,124.3411,204.11,204.07,2.67]
[1755974426313,124.3411,204.11,204.08,4.348718]
[1755974426516,124.3411,204.11,204.09,4.348718]
[1755974426714,4.9011,204.11,204.07,2.67]
[1755974426916,119.44,204.1,204.08,4.34875385]
[1755974427117,119.44,204.1,204.09,4.34875385]
[1755974427523,4.9005,204.13,204.09,4.34875385]
[1755974427723,119.44,204.1,204.07,2.67]
[1755974428034,119.44,204.1,204.08,4.34932229]
[1755974428328,119.44,204.1,204.09,4.34932229]
[1755974428827,3.22341986,204.12,204.09,4.34932229]
[1755974429025,119.44,204.1,204.06,2.67]
[1755974429225,119.44,204.1,204.07,4.35040174]
[1755974429421,119.44,204.1,204.08,4.35040174]
[1755974429622,122.66341986,204.1,204.03,5.89341986]
[1755974429820,4.901,204.11,204.04,8.41349427]
[1755974429821,119.44,204.09,204.04,8.41349427]
[1755974430019,119.44,204.09,204.05,4.352732]
[1755974430225,119.44,204.09,204.06,7.022732]
[1755974430427,119.44,204.09,204.07,4.352732]
[1755974430617,8.12441986,204.11,204.04,4.9024]
[1755974430926,119.44,204.1,204.05,7.0244866]
[1755974431127,119.44,204.1,204.05,2.67]
[1755974431325,119.44,204.1,204.06,7.02444418]
[1755974431527,119.44,204.1,204.07,4.35444418]
[1755974431731,119.44,204.1,204.08,4.35444418]
[1755974432022,119.44,204.1,204.09,4.35444418]
[1755974437229,119.44,204.1,204.09,4.34384645]
[1755974438437,8.12441986,204.11,204.09,4.34384645]
[1755974438738,8.12441986,204.11,204.1,4.34384645]
[1755974438932,127.56441986,204.11,204.1,4.34384645]
[1755974440639,127.56441986,204.11,204.1,4.34533131]
[1755974441040,127.56441986,204.11,204.1,4.3453313]
[1755974441731,119.44,204.11,204.04,3.22341986]
[1755974441937,119.44,204.11,204.05,2.8]
[1755974442338,3.22341986,204.12,204.05,2.8]
[1755974442638,4.9013,204.1,204.05,2.8]
[1755974443038,4.9013,204.1,204.06,2.8]
[1755974447739,4.9013,204.1,204.04,8.12581986]
[1755974452230,3.22341986,204.1,204.03,6.02341986]
[1755974452435,3.22341986,204.1,204.04,4.06628364]
[1755974452635,3.22341986,204.1,204.03,6.02341986]
[1755974452839,3.22341986,204.1,204.04,4.06627739]
[1755974453039,3.22341986,204.1,204.03,6.02341986]
[1755974453240,3.22341986,204.1,204.04,4.06627739]
[1755974453442,3.22341986,204.1,204.03,6.02341986]
[1755974453638,4.9018,204.08,204.05,2.8]
[1755974453838,119.42,204.07,204.05,2.8]
[1755974460845,39.1921,204.22,204.05,3.22341986]
[1755974461043,119.42,204.16,204.1,3.22341986]
[1755974461544,119.42,204.16,204.11,4.6079693]
[1755974461845,119.42,204.16,204.12,4.6079693]
[1755974462040,4.8995,204.17,204.13,4.6079693]
[1755974462239,329.48,204.18,204.14,4.6079693]
[1755974462448,3.22341986,204.23,204.15,7.4079693]
[1755974462746,119.42,204.22,204.16,4.05295337]
[1755974462946,119.42,204.21,204.14,6.02341986]
[1755974463141,119.42,204.21,204.15,4.05376781]
[1755974463342,119.42,204.21,204.14,6.02341986]
[1755974463537,119.42,204.21,204.15,8.7405782]
[1755974463847,122.64341986,204.21,204.16,4.61940811]
[1755974464044,3.22341986,204.19,204.17,4.61940811]
[1755974464243,3.22341986,204.19,204.18,4.61940811]
[1755974465051,4.8992,204.19,204.18,4.61940811]
[1755974465237,119.42,204.21,204.18,4.61940811]
[1755974465442,119.42,204.2,204.19,4.61940811]
[1755974465953,119.4,204.2,204.19,4.61940811]
[1755974466147,4.8985,204.21,204.19,4.61940811]
[1755974466348,8.12191986,204.21,204.2,4.61940811]
[1755974466647,127.52191986,204.21,204.2,4.61940811]
[1755974468742,4.899,204.19,204.15,2.55]
[1755974469043,119.38,204.18,204.16,4.61177559]
[1755974469243,119.38,204.18,204.17,4.61177559]
[1755974469548,4.8996,204.17,204.12,3.22341986]
[1755974469745,4.8996,204.17,204.13,7.16099008]
[1755974469940,4.8996,204.17,204.14,7.16099008]
[1755974470136,4.8996,204.17,204.15,7.16099008]
[1755974470338,4.8996,204.17,204.16,4.61099008]
[1755974471346,119.38,204.18,204.16,4.61099008]
[1755974471541,119.38,204.18,204.17,4.61099008]
[1755974471946,8.12241986,204.19,204.17,4.61099008]
[1755974472149,119.38,204.18,204.15,2.55]
[1755974472344,119.38,204.18,204.17,2.55]
[1755974472537,119.38,204.18,204.17,7.15806563]
[1755974472742,119.38,204.18,204.17,2.55]
[1755974478952,119.38,204.18,204.17,7.15261248]
[1755974479750,8.12211986,204.21,204.17,4.60261248]
[1755974479948,119.36,204.18,204.14,3.22341986]
[1755974480149,119.36,204.18,204.15,4.60233245]
[1755974480352,119.36,204.18,204.16,7.15233245]
[1755974480550,119.36,204.18,204.17,4.60233245]
[1755974481257,3.22341986,204.2,204.17,4.60233245]
[1755974481557,119.34,204.19,204.16,2.55]
[1755974481757,119.34,204.19,204.17,4.60156764]
[1755974481954,119.34,204.19,204.16,2.55]
[1755974482155,119.34,204.19,204.17,4.60140863]
[1755974482357,119.34,204.19,204.16,2.55]
[1755974482557,119.34,204.19,204.17,4.60129569]
[1755974482757,119.34,204.19,204.16,2.55]
[1755974482958,119.34,204.19,204.17,4.60129528]
[1755974483157,119.34,204.19,204.16,2.55]
[1755974483356,119.34,204.19,204.17,4.60109647]
[1755974483554,119.34,204.19,204.16,2.55]
[1755974483756,119.34,204.19,204.17,4.60109647]
[1755974483956,119.34,204.19,204.16,2.55]